bitfinex/quotes_BTCUSD_20250615
["timestamp","ask_amount","ask_price","bid_price","bid_amount"]
[1749980899174,1.49322103,105130.0,105120.0,0.04884]
[1749980899415,1.49322082,105130.0,105120.0,0.04884]
[1749980899631,1.49322082,105130.0,105120.0,0.04584]
[1749980899632,1.49222081,105130.0,105120.0,0.04584]
[1749980899862,1.49222069,105130.0,105120.0,0.006]
[1749980900074,1.49322069,105130.0,105120.0,0.04584]
[1749980900306,1.49322072,105130.0,105120.0,0.04584]
[1749980900547,1.49322074,105130.0,105120.0,0.04584]
[1749980900744,1.49222076,105130.0,105120.0,0.03984]
[1749980900960,1.4922208,105130.0,105120.0,0.03984]
[1749980901181,1.4932208,105130.0,105120.0,0.04184]
[1749980901395,0.99518351,105130.0,105120.0,0.04184]
[1749980901612,0.9951835,105130.0,105120.0,0.04184]
[1749980902043,0.9951836,105130.0,105120.0,0.04184]
[1749980902283,0.9951837,105130.0,105120.0,0.04184]
[1749980902518,0.98627545,105130.0,105120.0,0.04184]
[1749980902738,0.99518367,105130.0,105120.0,0.04184]
[1749980902959,0.99518366,105130.0,105120.0,0.04184]
[1749980903194,0.98627545,105130.0,105120.0,0.04184]
[1749980903417,0.99518371,105130.0,105120.0,0.04184]
[1749980903638,0.98627545,105130.0,105120.0,0.04184]
[1749980903864,0.99518373,105130.0,105120.0,0.04184]
[1749980904082,0.99518372,105130.0,105120.0,0.04184]
[1749980904554,0.98627545,105130.0,105120.0,0.04184]
[1749980904771,0.9951849,105130.0,105120.0,0.04184]
[1749980904977,0.99518606,105130.0,105120.0,0.04184]
[1749980905178,0.99518853,105130.0,105120.0,0.04184]
[1749980905350,0.97857545,105130.0,105120.0,0.04184]
[1749980905569,0.9874885,105130.0,105120.0,0.04184]
[1749980905794,0.98748854,105130.0,105120.0,0.04184]
[1749980905988,0.98748786,105130.0,105120.0,0.04184]
[1749980906184,0.98748761,105130.0,105120.0,0.04184]
[1749980906418,0.98748755,105130.0,105120.0,0.04184]
[1749980906769,0.98748622,105130.0,105120.0,0.04184]
[1749980906990,0.98627545,105130.0,105120.0,0.04184]
[1749980907206,0.9951853,105130.0,105120.0,0.04184]
[1749980907435,0.98627545,105130.0,105120.0,0.04184]
[1749980907874,0.59646381,105130.0,105120.0,0.04184]
[1749980908080,0.98627545,105130.0,105120.0,0.04184]
[1749980908313,0.99518482,105130.0,105120.0,0.04184]
[1749980908484,1.00409426,105130.0,105120.0,0.04184]
[1749980908691,1.00409427,105130.0,105120.0,0.04184]
[1749980908892,1.0040943,105130.0,105120.0,0.04184]
[1749980909242,1.0040947,105130.0,105120.0,0.04184]
[1749980909470,1.00409461,105130.0,105120.0,0.04184]
[1749980909811,0.99518482,105130.0,105120.0,0.04184]
[1749980910020,1.00409462,105130.0,105120.0,0.04184]
[1749980910240,1.00409457,105130.0,105120.0,0.04184]
[1749980910670,1.00409487,105130.0,105120.0,0.002]
[1749980910882,1.00409496,105130.0,105120.0,0.002]
[1749980911092,1.00409511,105130.0,105120.0,0.002]
[1749980911303,1.00409506,105130.0,105120.0,0.002]
[1749980911512,1.00409508,105130.0,105120.0,0.002]
[1749980912177,1.00409514,105130.0,105120.0,0.002]
[1749980912381,1.0040952,105130.0,105120.0,0.002]
[1749980912617,1.00409521,105130.0,105120.0,0.002]
[1749980912813,1.0040953,105130.0,105120.0,0.002]
[1749980913023,1.00409533,105130.0,105120.0,0.002]
[1749980913674,1.00406286,105130.0,105120.0,0.002]
[1749980913882,0.99518482,105130.0,105120.0,0.002]
[1749980914091,1.00406286,105130.0,105120.0,0.002]
[1749980914296,0.99518482,105130.0,105120.0,0.002]
[1749980914584,1.00015739,105130.0,105120.0,0.002]
[1749980915683,0.99245739,105130.0,105120.0,0.002]
[1749980916150,1.00015739,105130.0,105120.0,0.002]
[1749980916796,0.99245739,105130.0,105120.0,0.002]
[1749980918714,1.14709739,105130.0,105120.0,0.002]
[1749980920094,1.14709739,105130.0,105120.0,0.0175]
[1749980922320,1.14709739,105130.0,105120.0,0.002]
[1749980923418,1.64553452,105130.0,105120.0,0.002]
[1749980924342,1.65444691,105130.0,105120.0,0.002]
[1749980924798,1.64553452,105130.0,105120.0,0.002]
[1749980925020,1.65444691,105130.0,105120.0,0.002]
[1749980925458,0.5397715,105120.0,105110.0,0.0162]
[1749980925705,1.44584176,105120.0,105110.0,0.05604]
[1749980925917,1.60048171,105120.0,105110.0,0.05604]
[1749980926138,1.59156982,105120.0,105110.0,0.05604]
[1749980926364,1.6290756,105120.0,105110.0,0.05604]
[1749980926597,1.4744356,105120.0,105110.0,0.05604]
[1749980926815,1.65834285,105120.0,105110.0,0.05851541]
[1749980927040,1.65834286,105120.0,105110.0,0.05851541]
[1749980927259,1.6593429,105120.0,105110.0,0.06151541]
[1749980928479,1.6593429,105120.0,105110.0,0.07751541]
[1749980928662,1.49579107,105120.0,105110.0,0.07751541]
[1749980928944,0.87537796,105120.0,105110.0,0.38306107]
[1749980929188,1.06563669,105120.0,105110.0,0.38306125]
[1749980929402,1.05672457,105120.0,105110.0,0.39257464]
[1749980929620,1.06563673,105120.0,105110.0,0.39257464]
[1749980929839,1.05672457,105120.0,105110.0,0.39257464]
[1749980930068,1.05672457,105120.0,105110.0,0.38306125]
[1749980930314,1.50470323,105120.0,105110.0,0.36403402]
[1749980930537,1.48627832,105120.0,105110.0,0.37354786]
[1749980930980,1.4951904,105120.0,105110.0,0.37354786]
[1749980931435,0.99675054,105120.0,105110.0,0.37354786]
[1749980932095,0.99675085,105120.0,105110.0,0.37354786]
[1749980932311,0.98783846,105120.0,105110.0,0.37354786]
[1749980932543,0.9967508,105120.0,105110.0,0.37354786]
[1749980932771,0.99675079,105120.0,105110.0,0.37354786]
[1749980932992,0.98783846,105120.0,105110.0,0.37354786]
[1749980933216,0.99675073,105120.0,105110.0,0.37354786]
[1749980933435,0.99675074,105120.0,105110.0,0.37354786]
[1749980933944,0.99675075,105120.0,105110.0,0.37354786]
[1749980934152,0.98783846,105120.0,105110.0,0.37354786]
[1749980934376,0.99675073,105120.0,105110.0,0.37354786]
[1749980935679,0.98783846,105120.0,105110.0,0.38306161]
[1749980935891,0.99674968,105120.0,105110.0,0.38306161]
[1749980936116,0.99674975,105120.0,105110.0,0.38306161]
[1749980936331,0.99675079,105120.0,105110.0,0.38306161]
[1749980936553,0.98783846,105120.0,105110.0,0.38306161]
[1749980936772,0.98783846,105120.0,105110.0,0.37354786]
[1749980936986,0.99675011,105120.0,105110.0,0.37354786]
[1749980937194,0.99674995,105120.0,105110.0,0.37354786]
[1749980937409,0.98783846,105120.0,105110.0,0.37354786]
[1749980937855,0.98783846,105120.0,105110.0,0.17375717]
[1749980938076,0.98783846,105120.0,105110.0,0.37354777]
[1749980938322,0.99675007,105120.0,105110.0,0.37354777]
[1749980938535,0.99675007,105120.0,105110.0,0.36403402]
[1749980938756,0.99674987,105120.0,105110.0,0.17375717]
[1749980939212,0.98783846,105120.0,105110.0,0.17375717]
[1749980939645,0.99674994,105120.0,105110.0,0.17375717]
[1749980940284,0.98783846,105120.0,105110.0,0.17375717]
[1749980940498,0.99674798,105120.0,105110.0,0.17375717]
[1749980940712,0.98783846,105120.0,105110.0,0.17375717]
[1749980940921,0.99674783,105120.0,105110.0,0.18327101]
[1749980941136,0.99674788,105120.0,105110.0,0.18327101]
[1749980941347,0.99674785,105120.0,105110.0,0.18327101]
[1749980941565,0.99674783,105120.0,105110.0,0.38306161]
[1749980941782,0.99674788,105120.0,105110.0,0.36403402]
[1749980941998,0.99674793,105120.0,105110.0,0.18327101]
[1749980942209,0.99674788,105120.0,105110.0,0.18327101]
[1749980942420,0.99674803,105120.0,105110.0,0.18327101]
[1749980942651,0.98783846,105120.0,105110.0,0.18327101]
[1749980943147,0.99674816,105120.0,105110.0,0.18327101]
[1749980943372,0.98783846,105120.0,105110.0,0.18327101]
[1749980943816,0.99675108,105120.0,105110.0,0.18327101]
[1749980944033,0.98783846,105120.0,105110.0,0.18327101]
[1749980944509,0.99675108,105120.0,105110.0,0.18327101]
[1749980944730,0.98783846,105120.0,105110.0,0.14343101]
[1749980944951,0.98783846,105120.0,105110.0,0.18327101]
[1749980945178,0.99675108,105120.0,105110.0,0.18327101]
[1749980945646,0.98783846,105120.0,105110.0,0.18327101]
[1749980945876,0.99675107,105120.0,105110.0,0.18327101]
[1749980946331,0.98783846,105120.0,105110.0,0.37354786]
[1749980946552,0.99675107,105120.0,105110.0,0.37354786]
[1749980947245,0.99675109,105120.0,105110.0,0.37354786]
[1749980947812,0.98783846,105120.0,105110.0,0.37354786]
[1749980948210,0.99675109,105120.0,105110.0,0.37354786]
[1749980948415,0.98783846,105120.0,105110.0,0.37354786]
[1749980948632,0.99675112,105120.0,105110.0,0.37354786]
[1749980949012,0.99675113,105120.0,105110.0,0.37354786]
[1749980949478,0.98783846,105120.0,105110.0,0.17375717]
[1749980949696,0.99675137,105120.0,105110.0,0.17375717]
[1749980949917,0.99675152,105120.0,105110.0,0.17375717]
[1749980950630,0.98783846,105120.0,105110.0,0.17375717]
[1749980950847,0.99675159,105120.0,105110.0,0.17375717]
[1749980951064,0.98783846,105120.0,105110.0,0.36403402]
[1749980951282,1.48626958,105120.0,105110.0,0.36403402]
[1749980951727,1.49518268,105120.0,105110.0,0.17375717]
[1749980951949,1.49518264,105120.0,105110.0,0.17375717]
[1749980952596,1.48626958,105120.0,105110.0,0.17375717]
[1749980952812,1.49518263,105120.0,105110.0,0.17375717]
[1749980953272,1.48626958,105120.0,105110.0,0.17375717]
[1749980953487,1.49518263,105120.0,105110.0,0.17375717]
[1749980954136,1.48626958,105120.0,105110.0,0.17375717]
[1749980954384,1.49518263,105120.0,105110.0,0.17375717]
[1749980954597,1.48626958,105120.0,105110.0,0.17375717]
[1749980954821,1.49518263,105120.0,105110.0,0.17375717]
[1749980955043,1.48626958,105120.0,105110.0,0.17375717]
[1749980955482,1.49518244,105120.0,105110.0,0.17375717]
[1749980955924,1.48626958,105120.0,105110.0,0.17375717]
[1749980956784,1.49518244,105120.0,105110.0,0.17375717]
[1749980957460,1.49518244,105120.0,105110.0,0.37354786]
[1749980958029,1.4951823,105120.0,105110.0,0.37354786]
[1749980958233,1.48626958,105120.0,105110.0,0.37354786]
[1749980958878,1.4951816,105120.0,105110.0,0.17375717]
[1749980959079,1.48626958,105120.0,105110.0,0.17375717]
[1749980959285,1.49518169,105120.0,105110.0,0.17375717]
[1749980959528,1.49518172,105120.0,105110.0,0.17375717]
[1749980959710,1.48626958,105120.0,105110.0,0.36403402]
[1749980959923,1.49518173,105120.0,105110.0,0.17375717]
[1749980960367,1.49518175,105120.0,105110.0,0.17375717]
[1749980960565,1.48626958,105120.0,105110.0,0.17375717]
[1749980960905,1.49518174,105120.0,105110.0,0.17375717]
[1749980961325,1.48626958,105120.0,105110.0,0.17375717]
[1749980961536,1.49518174,105120.0,105110.0,0.17375717]
[1749980961955,1.48626958,105120.0,105110.0,0.17375717]
[1749980962184,1.49518174,105120.0,105110.0,0.17375717]
[1749980962810,1.48626958,105120.0,105110.0,0.17375717]
[1749980963023,1.49518174,105120.0,105110.0,0.17375717]
[1749980963676,1.49518173,105120.0,105110.0,0.17375717]
[1749980963893,1.48626958,105120.0,105110.0,0.17375717]
[1749980964107,1.49517917,105120.0,105110.0,0.17375717]
[1749980964323,1.48626958,105120.0,105110.0,0.17375717]
[1749980964528,1.49517917,105120.0,105110.0,0.17375717]
[1749980964738,1.48626958,105120.0,105110.0,0.17375717]
[1749980964942,1.49517917,105120.0,105110.0,0.17375717]
[1749980965371,1.48626958,105120.0,105110.0,0.17375717]
[1749980965792,1.49518174,105120.0,105110.0,0.17375717]
[1749980966030,1.48626958,105120.0,105110.0,0.17375717]
[1749980966298,1.49518174,105120.0,105110.0,0.17375717]
[1749980966536,1.48626958,105120.0,105110.0,0.17375717]
[1749980966980,1.49518174,105120.0,105110.0,0.17375717]
[1749980967183,1.48626958,105120.0,105110.0,0.17375717]
[1749980967403,1.49518174,105120.0,105110.0,0.17375717]
[1749980967845,1.49518002,105120.0,105110.0,0.17375717]
[1749980968062,1.49518001,105120.0,105110.0,0.17375717]
[1749980968281,1.49517992,105120.0,105110.0,0.17375717]
[1749980968504,1.48626958,105120.0,105110.0,0.17375717]
[1749980968726,1.49517961,105120.0,105110.0,0.17375717]
[1749980968940,1.49517955,105120.0,105110.0,0.17375717]
[1749980969173,1.48626958,105120.0,105110.0,0.17375717]
[1749980969835,1.49517958,105120.0,105110.0,0.17375717]
[1749980970054,1.49517971,105120.0,105110.0,0.17375717]
[1749980970290,1.6497802,105120.0,105110.0,0.06147541]
[1749980970519,1.66557985,105120.0,105110.0,0.00547541]
[1749980970755,1.73201898,105120.0,105110.0,0.00547541]
[1749980970977,1.73201897,105120.0,105110.0,0.00547541]
[1749980971185,1.73201886,105120.0,105110.0,0.00547541]
[1749980971406,1.73101888,105120.0,105110.0,0.00347541]
[1749980971621,1.72210924,105120.0,105110.0,0.00347541]
[1749980971837,1.73101881,105120.0,105110.0,0.00347541]
[1749980972051,1.73101876,105120.0,105110.0,0.00347541]
[1749980972262,1.72210924,105120.0,105110.0,0.00347541]
[1749980972469,1.73001876,105120.0,105110.0,0.00047541]
[1749980972890,1.73101876,105120.0,105110.0,0.00247541]
[1749980973127,1.73101873,105120.0,105110.0,0.00247541]
[1749980973372,1.72210924,105120.0,105110.0,0.00247541]
[1749980973583,1.68418195,105120.0,105110.0,0.00247541]
[1749980974012,1.68418195,105120.0,105110.0,0.02033437]
[1749980974222,1.68418195,105120.0,105110.0,0.02033438]
[1749980974431,1.69309122,105120.0,105110.0,0.00247541]
[1749980974644,1.68418195,105120.0,105110.0,0.00247541]
[1749980975308,1.68418195,105120.0,105110.0,0.02033457]
[1749980975966,1.68418195,105120.0,105110.0,0.00247541]
[1749980976410,1.69309121,105120.0,105110.0,0.02033443]
[1749980976626,1.68418195,105120.0,105110.0,0.0203344]
[1749980976844,1.68418195,105120.0,105110.0,0.02033445]
[1749980977294,1.68418195,105120.0,105110.0,0.02033456]
[1749980977533,1.68418195,105120.0,105110.0,0.03603443]
[1749980977750,1.68418195,105120.0,105110.0,0.01817541]
[1749980977957,1.68418195,105120.0,105110.0,0.03603442]
[1749980978165,1.66838195,105120.0,105110.0,0.03603442]
[1749980979015,1.66838195,105120.0,105110.0,0.01817541]
[1749980979431,1.66838195,105120.0,105110.0,0.03603449]
[1749980979921,1.66838195,105120.0,105110.0,0.01817541]
[1749980980157,1.66838195,105120.0,105110.0,0.03603445]
[1749980980366,1.66838195,105120.0,105110.0,0.01817541]
[1749980980569,1.66838195,105120.0,105110.0,0.03603447]
[1749980980792,1.66838195,105120.0,105110.0,0.03603446]
[1749980981002,1.66838195,105120.0,105110.0,0.01817541]
[1749980981222,1.66838195,105120.0,105110.0,0.03603429]
[1749980981445,1.66838195,105120.0,105110.0,0.03603422]
[1749980981862,1.66838195,105120.0,105110.0,0.0360344]
[1749980982072,1.66838195,105120.0,105110.0,0.03603428]
[1749980982283,1.66838195,105120.0,105110.0,0.03603422]
[1749980982485,1.63986958,105120.0,105110.0,0.03603431]
[1749980982720,1.66833387,105120.0,105110.0,0.03603422]
[1749980982936,1.66833387,105120.0,105110.0,0.03603419]
[1749980983147,1.66833387,105120.0,105110.0,0.03603422]
[1749980983348,1.66833387,105120.0,105110.0,0.03603435]
[1749980983564,1.66833387,105120.0,105110.0,0.01817541]
[1749980983794,1.51373387,105120.0,105110.0,0.05263435]
[1749980984016,1.51373387,105120.0,105110.0,0.25359278]
[1749980984017,0.84643604,105120.0,105110.0,0.25359278]
[1749980984231,0.88388382,105120.0,105110.0,0.35934774]
[1749980984461,0.89339684,105120.0,105110.0,0.35934774]
[1749980984671,0.89339694,105120.0,105110.0,0.35934774]
[1749980985118,0.87497321,105120.0,105110.0,0.35934774]
[1749980985571,0.87437167,105120.0,105110.0,0.35934774]
[1749980985810,0.893397,105120.0,105110.0,0.35934774]
[1749980986025,0.89339702,105120.0,105110.0,0.35934774]
[1749980986244,0.88388422,105120.0,105110.0,0.35934774]
[1749980986459,0.89339039,105120.0,105110.0,0.35934774]
[1749980986671,0.88448596,105120.0,105110.0,0.35934774]
[1749980986882,0.8933904,105120.0,105110.0,0.35934774]
[1749980987327,0.89339041,105120.0,105110.0,0.35934774]
[1749980987546,0.89339043,105120.0,105110.0,0.35934774]
[1749980988267,0.88448596,105120.0,105110.0,0.35934774]
[1749980988699,0.89339081,105120.0,105110.0,0.35934774]
[1749980988967,0.8939988,105120.0,105110.0,0.35934774]
[1749980989743,0.90290449,105120.0,105110.0,0.35934774]
[1749980989951,0.8939988,105120.0,105110.0,0.35934774]
[1749980990209,0.90290448,105120.0,105110.0,0.35934774]
[1749980990526,0.9029045,105120.0,105110.0,0.35934774]
[1749980990730,1.34257431,105120.0,105110.0,0.35934774]
[1749980990931,1.52332067,105120.0,105110.0,0.34032125]
[1749980991134,1.53222637,105120.0,105110.0,0.34032125]
[1749980991591,1.52332067,105120.0,105110.0,0.34032125]
[1749980991807,1.53222637,105120.0,105110.0,0.34032125]
[1749980992023,1.52332067,105120.0,105110.0,0.35934793]
[1749980992445,1.53222638,105120.0,105110.0,0.35934793]
[1749980992629,1.55649669,105120.0,105110.0,0.35934793]
[1749980992831,1.52332067,105120.0,105110.0,0.35934793]
[1749980993301,1.53222639,105120.0,105110.0,0.35934793]
[1749980993730,1.5322263,105120.0,105110.0,0.35934793]
[1749980993937,1.53223283,105120.0,105110.0,0.35934793]
[1749980994161,1.53223285,105120.0,105110.0,0.35934793]
[1749980994368,1.52332067,105120.0,105110.0,0.35934793]
[1749980994600,1.53223289,105120.0,105110.0,0.35934793]
[1749980995005,1.52272025,105120.0,105110.0,0.34983464]
[1749980995281,1.52272024,105120.0,105110.0,0.34983464]
[1749980995492,1.52272025,105120.0,105110.0,0.34032125]
[1749980995702,1.5138081,105120.0,105110.0,0.34032125]
[1749980996151,1.51320753,105120.0,105110.0,0.34032134]
[1749980996380,1.51320757,105120.0,105110.0,0.34032134]
[1749980996637,1.32294847,105120.0,105110.0,0.34032134]
[1749980996838,1.50429499,105120.0,105110.0,0.34983482]
[1749980997057,1.51320721,105120.0,105110.0,0.34983482]
[1749980997300,1.5132072,105120.0,105110.0,0.34983482]
[1749980997493,1.51320712,105120.0,105110.0,0.34983482]
[1749980997736,1.5132071,105120.0,105110.0,0.34983482]
[1749980997935,1.46618842,105120.0,105110.0,0.33080777]
[1749980998144,1.49045873,105120.0,105110.0,0.349835]
[1749980998349,1.47510056,105120.0,105110.0,0.349835]
[1749980998566,1.46618842,105120.0,105110.0,0.349835]
[1749980998770,1.44683331,105120.0,105110.0,0.34032143]
[1749980998972,1.4468333,105120.0,105110.0,0.34032143]
[1749980999178,1.44683326,105120.0,105110.0,0.34032143]
[1749980999384,1.43732042,105120.0,105110.0,0.34032143]
[1749980999592,1.42840833,105120.0,105110.0,0.34032143]
[1749980999818,1.43732098,105120.0,105110.0,0.34032143]
[1749981000023,1.42840833,105120.0,105110.0,0.349835]
[1749981000191,1.43732126,105120.0,105110.0,0.34032143]
[1749981000431,1.43732125,105120.0,105110.0,0.03477541]
[1749981000603,1.4373212,105120.0,105110.0,0.05797541]
[1749981001003,1.42840833,105120.0,105110.0,0.05797541]
[1749981001203,1.43732116,105120.0,105110.0,0.05797541]
[1749981001593,1.59192109,105120.0,105110.0,0.00247541]
[1749981001823,1.59950833,105120.0,105110.0,0.04227541]
[1749981002024,1.60842082,105120.0,105110.0,0.04227541]
[1749981002233,1.59950833,105120.0,105110.0,0.04227541]
[1749981002653,1.60842079,105120.0,105110.0,0.00247541]
[1749981003079,1.59950833,105120.0,105110.0,0.00247541]
[1749981003282,1.60842079,105120.0,105110.0,0.00247541]
[1749981003482,1.63701264,105120.0,105110.0,0.00247541]
[1749981003692,1.63701249,105120.0,105110.0,0.00247541]
[1749981003903,1.65656448,105120.0,105110.0,0.00247541]
[1749981004549,1.66547669,105120.0,105110.0,0.00247541]
[1749981004954,1.66547668,105120.0,105110.0,0.00247541]
[1749981005417,1.68974698,105120.0,105110.0,0.00247541]
[1749981005584,1.66547667,105120.0,105110.0,0.00247541]
[1749981006140,1.65656448,105120.0,105110.0,0.00247541]
[1749981006422,1.69407267,105120.0,105110.0,0.01877541]
[1749981006839,1.68516048,105120.0,105110.0,0.01877541]
[1749981007228,1.66866048,105120.0,105110.0,0.01877541]
[1749981007466,1.68396048,105120.0,105110.0,0.01877541]
[1749981008340,1.66866048,105120.0,105110.0,0.01877541]
[1749981008779,1.66866048,105120.0,105110.0,0.03487541]
[1749981009428,1.66866048,105120.0,105110.0,0.01877541]
[1749981011270,1.68476048,105120.0,105110.0,0.01877541]
[1749981011501,1.66866048,105120.0,105110.0,0.01877541]
[1749981013212,0.7715109,105120.0,105110.0,0.01877541]
[1749981013437,1.64019619,105120.0,105110.0,0.03497541]
[1749981014092,1.64019619,105120.0,105110.0,0.05283351]
[1749981014336,1.64019619,105120.0,105110.0,0.03497541]
[1749981014553,1.64910849,105120.0,105110.0,0.0528335]
[1749981014795,1.64910849,105120.0,105110.0,0.05283353]
[1749981015007,1.64019619,105120.0,105110.0,0.03497541]
[1749981015698,1.64910836,105120.0,105110.0,0.03497541]
[1749981015921,1.64910836,105120.0,105110.0,0.05283355]
[1749981016127,1.64019619,105120.0,105110.0,0.05283359]
[1749981016367,1.64910834,105120.0,105110.0,0.05283365]
[1749981016576,1.66866048,105120.0,105110.0,0.03497541]
[1749981016800,1.64910836,105120.0,105110.0,0.03497541]
[1749981017016,1.64019619,105120.0,105110.0,0.03497541]
[1749981017201,1.6491084,105120.0,105110.0,0.0528335]
[1749981017402,1.64910838,105120.0,105110.0,0.05283341]
[1749981017847,1.67757266,105120.0,105110.0,0.05283348]
[1749981018052,1.67757266,105120.0,105110.0,0.03497541]
[1749981018274,1.67757262,105120.0,105110.0,0.03663367]
[1749981018478,1.66866048,105120.0,105110.0,0.03663367]
[1749981018680,1.66866048,105120.0,105110.0,0.0366343]
[1749981018890,1.66866048,105120.0,105110.0,0.03663429]
[1749981019094,1.66866048,105120.0,105110.0,0.01877541]
[1749981019308,1.66866048,105120.0,105110.0,0.03663429]
[1749981019512,1.66866048,105120.0,105110.0,0.01877541]
[1749981020143,2.11723527,105120.0,105100.0,0.0158]
[1749981020358,0.00951646,105080.0,105070.0,0.22831439]
[1749981020572,0.63888785,105090.0,105080.0,0.23013117]
[1749981020811,0.63888785,105090.0,105080.0,0.15104176]
[1749981021682,0.63888785,105090.0,105080.0,0.11124176]
[1749981021888,1.08746264,105090.0,105080.0,0.16890336]
[1749981022112,1.08846264,105090.0,105080.0,0.1709033]
[1749981022323,1.42846264,105090.0,105080.0,0.11424176]
[1749981022550,1.42846264,105090.0,105080.0,0.17190336]
[1749981022774,1.42846264,105090.0,105080.0,0.07566175]
[1749981022987,1.45950056,105090.0,105080.0,0.07566185]
[1749981023212,1.45950056,105090.0,105080.0,0.09116191]
[1749981023420,0.98559804,105090.0,105080.0,0.09116195]
[1749981023624,0.96132773,105090.0,105080.0,0.09116185]
[1749981023837,0.96132773,105090.0,105080.0,0.0733]
[1749981024054,0.96132773,105090.0,105080.0,0.09116196]
[1749981024267,0.96132773,105090.0,105080.0,0.0733]
[1749981024477,0.96132773,105090.0,105080.0,0.09116196]
[1749981024689,0.96132773,105090.0,105080.0,0.0733]
[1749981024894,0.96132773,105090.0,105080.0,0.09116196]
[1749981025137,0.96132773,105090.0,105080.0,0.0733]
[1749981025587,0.96132773,105090.0,105080.0,0.0335]
[1749981025838,0.96132773,105090.0,105080.0,0.09116196]
[1749981026047,0.96132773,105090.0,105080.0,0.09116197]
[1749981026259,0.96132773,105090.0,105080.0,0.09116196]
[1749981027153,0.96132773,105090.0,105080.0,0.0733]
[1749981027368,0.96132773,105090.0,105080.0,0.09116197]
[1749981027576,0.96132773,105090.0,105080.0,0.0733]
[1749981027788,0.96132773,105090.0,105080.0,0.05136196]
[1749981027995,0.96132773,105090.0,105080.0,0.0733]
[1749981028200,0.96132773,105090.0,105080.0,0.09116196]
[1749981029182,0.96132773,105090.0,105080.0,0.0733]
[1749981029401,0.96132773,105090.0,105080.0,0.091162]
[1749981030137,0.96132773,105090.0,105080.0,0.0733]
[1749981030405,0.96132773,105090.0,105080.0,0.091162]
[1749981031274,0.96132773,105090.0,105080.0,0.0733]
[1749981034873,0.96132773,105090.0,105080.0,0.0335]
[1749981035104,1.11592773,105090.0,105080.0,0.0733]
[1749981035345,0.34,105070.0,105060.0,0.00951837]
[1749981035576,0.34,105070.0,105050.0,0.5139848]
[1749981035577,0.20940367,105060.0,105050.0,0.5139848]
[1749981035820,0.60838042,105060.0,105050.0,0.6293122]
[1749981036041,0.60838042,105060.0,105050.0,0.6052122]
[1749981036269,0.60838042,105060.0,105050.0,0.6450122]
[1749981036494,0.60838042,105060.0,105050.0,0.5956932]
[1749981036724,0.60838042,105060.0,105050.0,0.6450122]
[1749981036964,0.58934415,105060.0,105050.0,0.62597411]
[1749981037186,0.58934415,105060.0,105050.0,0.64501229]
[1749981037859,0.59134415,105060.0,105050.0,0.65501229]
[1749981038098,0.60086233,105060.0,105050.0,0.6645312]
[1749981038327,0.02103609,105060.0,105050.0,0.67404939]
[1749981038551,0.61989861,105060.0,105050.0,0.67953075]
[1749981039226,0.61989861,105060.0,105050.0,0.67001193]
[1749981041512,0.03055446,105060.0,105050.0,0.67953066]
[1749981041768,0.42953121,105060.0,105050.0,0.67953066]
[1749981042016,0.61989861,105060.0,105050.0,0.67953066]
[1749981042445,0.61989861,105060.0,105050.0,0.67001193]
[1749981042682,0.61989861,105060.0,105050.0,0.66049302]
[1749981043172,0.61989861,105060.0,105050.0,0.67001193]
[1749981043426,0.95989861,105060.0,105050.0,0.45106931]
[1749981043657,0.94086252,105060.0,105050.0,0.33982755]
[1749981044587,0.93986252,105060.0,105050.0,0.33582755]
[1749981044814,0.94086252,105060.0,105050.0,0.33582755]
[1749981045042,0.54188577,105060.0,105050.0,0.33582755]
[1749981045265,0.96413283,105060.0,105050.0,0.32982755]
[1749981045489,0.94086252,105060.0,105050.0,0.33082755]
[1749981045720,0.96913452,105060.0,105050.0,0.33082755]
[1749981048727,0.96913452,105060.0,105050.0,0.34602755]
[1749981049436,0.96913452,105060.0,105050.0,0.33082755]
[1749981050365,1.12405452,105060.0,105050.0,0.54593226]
[1749981050783,0.96913452,105060.0,105050.0,0.55545135]
[1749981051861,0.96913452,105060.0,105050.0,0.54593226]
[1749981052064,0.95961615,105060.0,105050.0,0.54593235]
[1749981053288,0.95961615,105060.0,105050.0,0.56379946]
[1749981053492,0.95961615,105060.0,105050.0,0.55545153]
[1749981053712,0.95961615,105060.0,105050.0,0.57331861]
[1749981054595,0.95961615,105060.0,105050.0,0.57331865]
[1749981054823,0.95961615,105060.0,105050.0,0.37341394]
[1749981055026,0.95961615,105060.0,105050.0,0.37341398]
[1749981055206,0.95961615,105060.0,105050.0,0.373414]
[1749981055445,0.95961615,105060.0,105050.0,0.37341394]
[1749981055596,0.95961615,105060.0,105050.0,0.35554682]
[1749981056204,0.95961615,105060.0,105050.0,0.37341409]
[1749981056627,0.95961615,105060.0,105050.0,0.56379952]
[1749981056930,0.95961615,105060.0,105050.0,0.56379949]
[1749981057129,0.5606394,105060.0,105050.0,0.55545153]
[1749981057330,0.95961615,105060.0,105050.0,0.55545153]
[1749981057651,0.95961615,105060.0,105050.0,0.5733186]
[1749981057847,0.95961615,105060.0,105050.0,0.55545153]
[1749981058016,0.95961615,105060.0,105050.0,0.5733186]
[1749981058401,0.95961615,105060.0,105050.0,0.55545153]
[1749981058610,0.95961615,105060.0,105050.0,0.2990386]
[1749981058826,0.5606394,105060.0,105050.0,0.29903865]
[1749981059051,0.95961615,105060.0,105050.0,0.29903865]
[1749981059252,0.98822615,105060.0,105050.0,0.28117153]
[1749981059457,0.98822615,105060.0,105050.0,0.29903861]
[1749981059673,0.98822615,105060.0,105050.0,0.28117153]
[1749981059875,0.98822615,105060.0,105050.0,0.30855769]
[1749981060094,0.398882,105060.0,105050.0,0.42383687]
[1749981060310,0.83593093,105060.0,105050.0,0.42383617]
[1749981060528,0.8454493,105060.0,105050.0,0.42383635]
[1749981060743,1.02629888,105060.0,105050.0,0.39645129]
[1749981060978,1.02629888,105060.0,105050.0,0.41431784]
[1749981061206,1.01678097,105060.0,105050.0,0.38693238]
[1749981061422,1.00726279,105060.0,105050.0,0.18585604]
[1749981061647,0.99774452,105060.0,105050.0,0.38576078]
[1749981061830,0.99774452,105060.0,105050.0,0.3857608]
[1749981062091,0.99774452,105060.0,105050.0,0.39527994]
[1749981062523,0.99774452,105060.0,105050.0,0.39527999]
[1749981062776,0.99774452,105060.0,105050.0,0.39528023]
[1749981062995,0.99774452,105060.0,105050.0,0.38576098]
[1749981063413,0.99774452,105060.0,105050.0,0.3857609]
[1749981063594,0.99774452,105060.0,105050.0,0.38576084]
[1749981064008,0.99774452,105060.0,105050.0,0.36789402]
[1749981064238,0.99774452,105060.0,105050.0,0.38576071]
[1749981064450,0.99774452,105060.0,105050.0,0.40479875]
[1749981064655,0.99774452,105060.0,105050.0,0.40479844]
[1749981064867,0.99774452,105060.0,105050.0,0.38693193]
[1749981065070,0.99774452,105060.0,105050.0,0.38576038]
[1749981065276,1.04779127,105060.0,105050.0,0.36789402]
[1749981065725,1.04779127,105060.0,105050.0,0.39527967]
[1749981066095,1.04779127,105060.0,105050.0,0.39527968]
[1749981066290,1.04779127,105060.0,105050.0,0.37741311]
[1749981066466,1.04779127,105060.0,105050.0,0.39527994]